fUST/lending_fUST_20240704
["ID","MTS","AMOUNT","RATE_DAILY","PERIOD"]
[331047981,1720044648140,-500.0,0.00014532,2]
[331047982,1720044648150,-500.0,0.00014532,2]
[331047983,1720044648160,-500.0,0.00014532,2]
[331047984,1720044648170,-500.0,0.00014532,2]
[331047985,1720044648179,-500.0,0.00014532,2]
[331047986,1720044648188,-500.0,0.00014532,2]
[331047987,1720044648197,-500.0,0.00014532,2]
[331047988,1720044648207,-500.0,0.00014532,2]
[331047989,1720044648220,-500.0,0.00014532,2]
[331047990,1720044648230,-500.0,0.00014532,2]
[331047991,1720044648239,-500.0,0.00014532,2]
[331047992,1720044648248,-500.0,0.00014532,2]
[331047993,1720044648259,-500.0,0.00014532,2]
[331047994,1720044648268,-500.0,0.00014532,2]
[331047995,1720044648277,-501.75183292,0.00014532,2]
[331047996,1720044648286,-500.0,0.00014532,2]
[331047997,1720044648299,-500.0,0.00014532,2]
[331047998,1720044648310,-500.0,0.00014532,2]
[331047999,1720044648418,-500.0,0.00014532,2]
[331048000,1720044648428,-500.0,0.00014532,2]
[331048001,1720044648439,-500.0,0.00014532,2]
[331048002,1720044648448,-500.0,0.00014532,2]
[331048003,1720044648457,-500.0,0.00014532,2]
[331048004,1720044648466,-501.36627775,0.00014532,2]
[331048005,1720044648475,-500.0,0.00014532,2]
[331048006,1720044648484,-500.0,0.00014532,2]
[331048007,1720044648494,-500.0,0.00014532,2]
[331048008,1720044648504,-500.0,0.00014532,2]
[331048009,1720044648514,-500.0,0.00014532,2]
[331048010,1720044648523,-500.0,0.00014532,2]
[331048011,1720044648533,-500.0,0.00014532,2]
[331048012,1720044648543,-500.0,0.00014532,2]
[331048013,1720044648552,-500.0,0.00014532,2]
[331048014,1720044648561,-500.0,0.00014532,2]
[331048015,1720044648571,-500.0,0.00014532,2]
[331048016,1720044648580,-500.0,0.00014532,2]
[331048017,1720044648589,-500.0,0.00014532,2]
[331048018,1720044648599,-552.82,0.00014532,2]
[331048019,1720044648609,-500.0,0.00014532,2]
[331048020,1720044648619,-500.0,0.00014532,2]
[331048021,1720044648628,-176.49,0.00014532,2]
[331048022,1720044648638,-500.0,0.00014532,2]
[331048023,1720044648647,-513.54920582,0.00014532,2]
[331048024,1720044648656,-500.0,0.00014532,2]
[331048025,1720044648665,-577.27,0.00014532,2]
[331048026,1720044648674,-500.0,0.00014532,2]
[331048027,1720044648684,-500.0,0.00014532,2]
[331048028,1720044648693,-500.0,0.00014532,2]
[331048029,1720044648703,-500.0,0.00014532,2]
[331048030,1720044648712,-500.0,0.00014532,2]
[331048031,1720044648721,-500.0,0.00014532,2]
[331048032,1720044648730,-500.0,0.00014532,2]
[331048033,1720044648739,-500.0,0.00014532,2]
[331048034,1720044648749,-500.0,0.00014532,2]
[331048035,1720044648757,-500.0,0.00014532,2]
[331048036,1720044648766,-501.33064968,0.00014532,2]
[331048037,1720044648776,-500.0,0.00014532,2]
[331048038,1720044648785,-356.11592813,0.00014532,2]
[331048039,1720044648794,-500.0,0.00014532,2]
[331048040,1720044648803,-291.70807813,0.00014532,2]
[331048041,1720044648812,-550.45402969,0.00014532,2]
[331048042,1720044648821,-500.0,0.00014532,2]
[331048043,1720044648830,-151.0,0.00014532,2]
[331048044,1720044648839,-500.0,0.00014532,2]
[331048045,1720044648849,-500.0,0.00014532,2]
[331048046,1720044648857,-500.0,0.00014532,2]
[331048047,1720044648867,-246.489736,0.00014532,2]
[331048048,1720044648876,-326.53011651,0.00014532,2]
[331048049,1720044648884,-1263.998968,0.00014533,2]
[331048050,1720044648894,-1263.998968,0.00014533,2]
[331048051,1720044648903,-1263.998968,0.00014533,2]
[331048052,1720044648912,-1263.998968,0.00014533,2]
[331048053,1720044648922,-151.0,0.00014533,2]
[331048054,1720044648932,-151.0,0.00014533,2]
[331048055,1720044648941,-151.0,0.00014533,2]
[331048056,1720044648950,-151.0,0.00014533,2]
[331048057,1720044648959,-1167.928094,0.00014533,2]
[331048058,1720044648968,-1167.928094,0.00014533,2]
[331048059,1720044648977,-151.0,0.00014533,2]
[331048060,1720044648987,-1167.928094,0.00014533,2]
[331048061,1720044648995,-1167.928094,0.00014533,2]
[331048062,1720044649005,-246.489736,0.00014533,2]
[331048063,1720044649014,-23490.25560365,0.00014533,2]
[331048064,1720044649186,-12117.0222341,0.00014533,2]
[331048065,1720044649197,-1678.98109624,0.00014533,2]
[331048066,1720044653559,210.98216367,9.999e-05,2]
[331048067,1720044653577,210.98216367,9.999e-05,2]
[331048068,1720044653598,74.52973182,9.999e-05,2]
[331048069,1720044653617,33.04938391,9.999e-05,2]
[331048070,1720044664456,128.75665885,9.999e-05,2]
[331048071,1720044664477,155.75056647,9.999e-05,2]
[331048072,1720044664499,179.9274556,9.999e-05,2]
[331048073,1720044664521,59.67674155,9.999e-05,2]
[331048074,1720044799411,500.0,0.00013801,7]
[331048075,1720044799804,210.98216367,9.999e-05,2]
[331048076,1720044800750,500.0,0.00013801,7]
[331048077,1720044801500,500.0,0.00013801,7]
[331048078,1720044802251,500.0,0.00013801,7]
[331048079,1720044803012,500.0,0.00013801,7]
[331048080,1720044803771,500.0,0.00013801,7]
[331048081,1720044804758,500.0,0.00013801,7]
[331048082,1720044805584,500.0,0.00013801,7]
[331048083,1720044806337,548.49,0.00013801,7]
[331048084,1720044814835,155.75056647,9.999e-05,2]
[331048085,1720044850703,314.5,0.00013801,7]
[331048086,1720044891598,309.6439095,9.999e-05,2]
[331048087,1720045109457,481.59504744,9.999e-05,2]
[331048088,1720045123938,619.42287717,9.999e-05,2]
[331048089,1720045457880,802.69414969,9.999e-05,2]
[331048098,1720045551130,-798.85211932,0.00013333,2]
[331048102,1720045628099,-643.16665666,0.00013333,2]
[331048103,1720045637107,-426.89148405,0.00013333,2]
[331048104,1720045643126,-242.19353293,0.00013333,2]
[331048105,1720045645142,-2086.80814682,0.00013333,2]
[331048106,1720045647099,-216.80646707,0.00013333,2]
[331048107,1720045647126,-159.62149372,0.00013333,2]
[331048108,1720045652095,-615.84974863,0.00013333,2]
[331048109,1720045652113,-130.4900995,0.00013502,2]
[331048111,1720045764094,-11500.9860531,0.00013502,2]
[331048112,1720045768104,-2168.5238474,0.00013502,2]
[331048113,1720045768127,-500.000001,0.0001351,2]
[331048114,1720045771053,-215.06183346,0.00014,2]
[331048115,1720045771072,-197.2,0.00014104,2]
[331048129,1720045832988,-161.80604276,0.00014412,2]
[331048130,1720045832999,-1036.77769363,0.00014412,2]
[331048131,1720045833011,-133.70386394,0.000145,2]
[331048132,1720045833028,-19.29613606,0.000145,2]
[331048133,1720045833042,-500.0,0.0001451,2]
[331048134,1720045833054,-225.64,0.0001451,2]
[331048135,1720045833066,-574.85,0.0001451,2]
[331048136,1720045833078,-70.21386394,0.0001451,2]
[331048137,1720045833093,-315.71,0.0001451,2]
[331048138,1720045833108,-114.07613606,0.0001451,2]
[331048139,1720045833121,-500.0,0.0001451,2]
[331048140,1720045833134,-500.0,0.0001451,2]
[331048141,1720045833144,-1592.23,0.0001451,2]
[331048142,1720045833313,-1086.44223818,0.0001451,2]
[331048159,1720045838206,-346.42776182,0.0001451,2]
[331048160,1720045838216,-253.38982107,0.0001451,2]
[331048161,1720045838228,-1485.96017893,0.0001451,2]
[331048162,1720045838238,-500.0,0.0001451,2]
[331048163,1720045838248,-1031.15,0.0001451,2]
[331048164,1720045838258,-500.0,0.0001451,2]
[331048165,1720045838267,-500.0,0.0001451,2]
[331048166,1720045838277,-500.0,0.0001451,2]
[331048167,1720045838286,-176.49,0.0001451,2]
[331048168,1720045838295,-500.0,0.0001451,2]
[331048169,1720045838304,-72.95982107,0.0001451,2]
[331048170,1720045838350,-577.44017893,0.0001451,2]
[331048171,1720045838360,-17.47718161,0.0001451,2]
[331048182,1720045840909,-482.52281839,0.0001451,2]
[331048183,1720045840919,-30.46718161,0.0001451,2]
[331048184,1720045840931,-469.53281839,0.0001451,2]
[331048185,1720045840940,-9350.59,0.0001451,2]
[331048186,1720045840950,-500.0,0.0001451,2]
[331048187,1720045840959,-3288.01,0.0001451,2]
[331048188,1720045840969,-1133.17,0.0001451,2]
[331048189,1720045840978,-500.0,0.0001451,2]
[331048190,1720045840988,-330.64571255,0.0001451,2]
[331048191,1720045840997,-500.0,0.0001451,2]
[331048192,1720045841006,-439.40128222,0.0001451,2]
[331048193,1720045841016,-500.0,0.0001451,2]
[331048194,1720045841025,-500.0,0.0001451,2]
[331048195,1720045841035,-500.0,0.0001451,2]
[331048196,1720045841044,-500.0,0.0001451,2]
[331048197,1720045841053,-500.0,0.0001451,2]
[331048198,1720045841062,-500.0,0.0001451,2]
[331048199,1720045841071,-500.0,0.0001451,2]
[331048200,1720045841081,-40270.05338284,0.00014511,2]
[331048201,1720045841361,-861.075,0.00014511,2]
[331048210,1720045843575,-269.350406,0.0001451,2]
[331048211,1720045843587,-230.649594,0.0001451,2]
[331048212,1720045843596,-787.69554261,0.00014511,2]
[331048213,1720045843749,-14032.2270576,0.00014511,2]
[331048296,1720045846483,-345.00673985,0.00014511,2]
[331048298,1720045846496,-486.54,0.00014511,2]
[331048300,1720045846507,-22887.75920493,0.00014511,2]
[331048316,1720045846650,-89400.28068817,0.00014511,2]
[331048318,1720045846661,-21190.85866769,0.00014512,2]
[331048320,1720045846670,-338141.275232,0.00014512,2]
[331048322,1720045846680,-635.01,0.0001452,2]
[331048324,1720045846690,-500.0,0.0001452,2]
[331048326,1720045846700,-504.47681493,0.0001452,2]
[331048328,1720045846709,-500.0,0.0001452,2]
[331048330,1720045846719,-527.61,0.0001452,2]
[331048332,1720045846729,-1092.93,0.0001452,2]
[331048334,1720045846738,-500.0,0.0001452,2]
[331048336,1720045846747,-500.0,0.0001452,2]
[331048338,1720045846757,-500.0,0.0001452,2]
[331048340,1720045846766,-556.83,0.0001452,2]
[331048342,1720045846776,-880.07,0.0001452,2]
[331048344,1720045846785,-500.0,0.0001452,2]
[331048345,1720045846795,-500.0,0.0001452,2]
[331048347,1720045846804,-500.0,0.0001452,2]
[331048349,1720045846813,-500.0,0.0001452,2]
[331048351,1720045846823,-500.0,0.0001452,2]
[331048353,1720045846832,-500.0,0.0001452,2]
[331048356,1720045846841,-500.0,0.0001452,2]
[331048359,1720045846849,-500.0,0.0001452,2]
[331048361,1720045846859,-505.82178899,0.0001452,2]
[331048364,1720045846867,-500.0,0.0001452,2]
[331048367,1720045846877,-500.0,0.0001452,2]
[331048370,1720045846886,-500.0,0.0001452,2]
[331048374,1720045846895,-1172.96,0.0001452,2]
[331048377,1720045846905,-500.0,0.0001452,2]
[331048379,1720045846914,-500.0,0.0001452,2]
[331048381,1720045846926,-500.0,0.0001452,2]
[331048384,1720045846935,-500.0,0.0001452,2]
[331048387,1720045846945,-500.0,0.0001452,2]
[331048390,1720045846954,-522.49,0.0001452,2]
[331048393,1720045846963,-506.92624368,0.0001452,2]
[331048396,1720045846972,-500.0,0.0001452,2]
[331048399,1720045846982,-500.0,0.0001452,2]
[331048402,1720045846991,-500.0,0.0001452,2]
[331048405,1720045847001,-2970.94,0.0001452,2]
[331048408,1720045847014,-500.0,0.0001452,2]
[331048411,1720045847024,-500.0,0.0001452,2]
[331048414,1720045847033,-506.45213534,0.0001452,2]
[331048417,1720045847042,-500.0,0.0001452,2]
[331048420,1720045847051,-500.0,0.0001452,2]
[331048423,1720045847060,-500.0,0.0001452,2]
[331048425,1720045847069,-500.0,0.0001452,2]
[331048428,1720045847078,-500.0,0.0001452,2]
[331048431,1720045847088,-560.39,0.0001452,2]
[331048434,1720045847097,-500.0,0.0001452,2]
[331048437,1720045847107,-500.0,0.0001452,2]
[331048440,1720045847116,-500.0,0.0001452,2]
[331048443,1720045847126,-500.0,0.0001452,2]
[331048445,1720045847135,-500.0,0.0001452,2]
[331048447,1720045847144,-500.0,0.0001452,2]
[331048449,1720045847153,-500.0,0.0001452,2]
[331048451,1720045847162,-500.0,0.0001452,2]
[331048453,1720045847172,-500.0,0.0001452,2]
[331048455,1720045847181,-503.37965649,0.0001452,2]
[331048457,1720045847191,-500.0,0.0001452,2]
[331048459,1720045847200,-500.0,0.0001452,2]
[331048461,1720045847209,-500.0,0.0001452,2]
[331048463,1720045847218,-500.0,0.0001452,2]
[331048465,1720045847231,-500.0,0.0001452,2]
[331048467,1720045847240,-500.0,0.0001452,2]
[331048469,1720045847250,-500.0,0.0001452,2]
[331048471,1720045847259,-500.0,0.0001452,2]
[331048473,1720045847268,-500.0,0.0001452,2]
[331048475,1720045847277,-500.0,0.0001452,2]
[331048477,1720045847286,-500.0,0.0001452,2]
[331048479,1720045847295,-500.0,0.0001452,2]
[331048481,1720045847305,-500.0,0.0001452,2]
[331048483,1720045847313,-500.0,0.0001452,2]
[331048485,1720045847323,-500.0,0.0001452,2]
[331048486,1720045847331,-627.95,0.0001452,2]
[331048489,1720045847341,-500.0,0.0001452,2]
[331048491,1720045847350,-500.0,0.0001452,2]
[331048493,1720045847359,-1431.40025022,0.00014521,2]
[331048494,1720045847368,-94296.13772361,0.00014521,2]
[331048497,1720045847381,-74774.49989239,0.00014521,2]
[331048499,1720045847391,-500.0,0.00014521,2]
[331048501,1720045847400,-500.0,0.00014521,2]
[331048503,1720045847409,-500.0,0.00014521,2]
[331048505,1720045847418,-500.0,0.00014521,2]
[331048507,1720045847427,-500.0,0.00014521,2]
[331048509,1720045847436,-500.0,0.00014521,2]
[331048511,1720045847445,-500.0,0.00014521,2]
[331048513,1720045847454,-500.0,0.00014521,2]
[331048515,1720045847464,-776.67,0.00014521,2]
[331048517,1720045847473,-810.21,0.00014521,2]
[331048518,1720045847485,-500.0,0.00014521,2]
[331048520,1720045847494,-500.0,0.00014521,2]
[331048522,1720045847504,-500.0,0.00014521,2]
[331048524,1720045847513,-500.0,0.00014521,2]
[331048526,1720045847522,-500.0,0.00014521,2]
[331048528,1720045847532,-500.0,0.00014521,2]
[331048531,1720045847543,-500.0,0.00014521,2]
[331048533,1720045847552,-500.0,0.00014521,2]
[331048535,1720045847562,-500.0,0.00014521,2]
[331048537,1720045847571,-487.7141565,0.00014521,2]
[331048539,1720045847583,-12.2858435,0.00014521,2]
[331048541,1720045847593,-500.0,0.00014521,2]
[331048543,1720045847602,-500.0,0.00014521,2]
[331048545,1720045847611,-500.0,0.00014521,2]
[331048547,1720045847626,-500.0,0.00014521,2]
[331048549,1720045847636,-198.19128779,0.00014521,2]
[331048551,1720045847647,-301.80871221,0.00014521,2]
[331048553,1720045847657,-500.0,0.00014521,2]
[331048555,1720045847666,-500.0,0.00014521,2]
[331048557,1720045847676,-500.0,0.00014521,2]
[331048559,1720045847685,-500.0,0.00014521,2]
[331048561,1720045847694,-500.0,0.00014521,2]
[331048563,1720045847707,-500.0,0.00014521,2]
[331048565,1720045847716,-501.24546415,0.00014521,2]
[331048567,1720045847726,-500.0,0.00014521,2]
[331048569,1720045847736,-500.0,0.00014521,2]
[331048571,1720045847746,-500.0,0.00014521,2]
[331048573,1720045847755,-500.0,0.00014522,2]
[331048576,1720045847765,-500.0,0.00014522,2]
[331048578,1720045847774,-500.0,0.00014522,2]
[331048579,1720045847783,-500.0,0.00014522,2]
[331048581,1720045847793,-500.0,0.00014522,2]
[331048583,1720045847802,-500.0,0.00014522,2]
[331048585,1720045847811,-500.0,0.00014522,2]
[331048587,1720045847820,-275.07232232,0.00014522,2]
[331048589,1720045847829,-500.0,0.00014522,2]
[331048591,1720045847839,-500.0,0.00014522,2]
[331048593,1720045847848,-489.19997459,0.00014522,2]
[331048595,1720045847857,-500.0,0.00014522,2]
[331048597,1720045847866,-500.0,0.00014522,2]
[331048599,1720045847875,-500.0,0.00014522,2]
[331048601,1720045847884,-500.0,0.00014522,2]
[331048603,1720045847893,-500.0,0.00014522,2]
[331048605,1720045847902,-500.0,0.00014522,2]
[331048607,1720045847912,-563.88501302,0.00014522,2]
[331048609,1720045847921,-500.0,0.00014522,2]
[331048623,1720045848042,-500.0,0.00014522,2]
[331048625,1720045848052,-500.0,0.00014522,2]
[331048627,1720045848062,-500.0,0.00014522,2]
[331048629,1720045848071,-500.0,0.00014522,2]
[331048631,1720045848080,-500.0,0.00014522,2]
[331048633,1720045848089,-500.0,0.00014522,2]
[331048635,1720045848099,-500.0,0.00014522,2]
[331048637,1720045848107,-500.0,0.00014522,2]
[331048639,1720045848116,-500.0,0.00014522,2]
[331048641,1720045848125,-500.0,0.00014522,2]
[331048643,1720045848135,-500.0,0.00014522,2]
[331048645,1720045848144,-517.21,0.00014522,2]
[331048647,1720045848153,-500.0,0.00014522,2]
[331048649,1720045848162,-500.0,0.00014522,2]
[331048651,1720045848171,-500.0,0.00014522,2]
[331048653,1720045848180,-500.0,0.00014522,2]
[331048655,1720045848189,-500.0,0.00014522,2]
[331048657,1720045848198,-500.0,0.00014522,2]
[331048659,1720045848207,-500.0,0.00014522,2]
[331048661,1720045848216,-500.0,0.00014522,2]
[331048663,1720045848225,-500.0,0.00014522,2]
[331048666,1720045848235,-501.77381646,0.00014522,2]
[331048668,1720045848245,-500.0,0.00014522,2]
[331048669,1720045848254,-500.0,0.00014522,2]
[331048671,1720045848263,-500.0,0.00014522,2]
[331048673,1720045848272,-500.0,0.00014522,2]
[331048675,1720045848281,-500.0,0.00014522,2]
[331048678,1720045848291,-169.09726661,0.00014522,2]
[331048679,1720045848299,-500.0,0.00014522,2]
[331048681,1720045848309,-500.0,0.00014522,2]
[331048684,1720045848318,-500.0,0.00014522,2]
[331048685,1720045848327,-500.0,0.00014522,2]
[331048687,1720045848336,-500.0,0.00014522,2]
[331048689,1720045848345,-500.0,0.00014522,2]
[331048692,1720045848355,-500.0,0.00014522,2]
[331048693,1720045848364,-500.0,0.00014522,2]
[331048695,1720045848373,-600.67,0.00014522,2]
[331048697,1720045848383,-500.0,0.00014522,2]
[331048699,1720045848392,-500.0,0.00014522,2]
[331048702,1720045848401,-500.0,0.00014522,2]
[331048704,1720045848410,-500.0,0.00014522,2]
[331048705,1720045848420,-788.62,0.00014522,2]
[331048707,1720045848430,-500.0,0.00014522,2]
[331048710,1720045848439,-500.0,0.00014522,2]
[331048711,1720045848448,-500.0,0.00014522,2]
[331048714,1720045848458,-500.0,0.00014522,2]
[331048716,1720045848468,-500.0,0.00014522,2]
[331048718,1720045848478,-500.0,0.00014522,2]
[331048719,1720045848488,-422.80629101,0.00014522,2]
[331054382,1720045908287,179.79600973,9.999e-05,2]
[331054912,1720045914369,500.0,0.00013801,7]
[331054989,1720045915095,500.0,0.00013801,7]
[331055051,1720045915848,500.0,0.00013801,7]
[331055126,1720045916630,500.0,0.00013801,7]
[331055207,1720045917407,500.0,0.00013801,7]
[331055280,1720045918182,500.0,0.00013801,7]
[331055359,1720045918937,500.0,0.00013801,7]
[331055435,1720045919708,500.0,0.00013801,7]
[331055514,1720045920480,500.0,0.00013801,7]
[331055577,1720045921227,500.0,0.00013801,7]
[331055646,1720045921973,500.0,0.00013801,7]
[331055696,1720045922726,500.0,0.00013801,7]
[331055747,1720045923489,500.0,0.00013801,7]
[331055803,1720045924259,500.0,0.00013801,7]
[331055886,1720045925048,500.0,0.00013801,7]
[331055967,1720045925814,500.0,0.00013801,7]
[331056084,1720045926934,500.0,0.00013801,7]
[331056147,1720045927745,500.0,0.00013801,7]
[331060666,1720045993293,500.0,0.00013801,7]
[331060667,1720046017005,615.44,0.00013801,7]
[331060668,1720046058724,500.0,0.00013801,7]
[331060669,1720046059481,500.0,0.00013801,7]
[331060670,1720046060228,500.0,0.00013801,7]
[331060671,1720046061160,500.0,0.00013801,7]
[331060672,1720046061734,500.0,0.00013801,7]
[331060673,1720046062500,500.0,0.00013801,7]
[331060674,1720046063240,500.0,0.00013801,7]
[331060675,1720046064116,500.0,0.00013801,7]
[331060676,1720046064901,500.0,0.00013801,7]
[331060677,1720046065876,500.0,0.00013801,7]
[331060678,1720046066858,500.0,0.00013801,7]
[331060679,1720046067612,500.0,0.00013801,7]
[331060680,1720046068353,500.0,0.00013801,7]
[331060681,1720046069234,500.0,0.00013801,7]
[331060682,1720046070927,500.0,0.00013801,7]
[331060683,1720046071661,500.0,0.00013801,7]
[331060684,1720046072438,500.0,0.00013801,7]
[331060685,1720046073167,500.0,0.00013801,7]
[331060686,1720046073935,500.0,0.00013801,7]
[331060687,1720046074710,500.0,0.00013801,7]
[331060688,1720046075456,500.0,0.00013801,7]
[331060689,1720046076222,500.0,0.00013801,7]
[331060690,1720046076968,500.0,0.00013801,7]
[331060691,1720046077717,500.0,0.00013801,7]
[331060692,1720046078457,500.0,0.00013801,7]
[331060693,1720046079202,500.0,0.00013801,7]
[331060695,1720046145611,500.0,0.00013801,7]
[331060696,1720046146460,500.0,0.00013801,7]
[331060697,1720046147234,500.0,0.00013801,7]
[331060698,1720046147990,500.0,0.00013801,7]
[331060699,1720046148761,500.0,0.00013801,7]
[331060700,1720046149511,500.0,0.00013801,7]
[331060701,1720046150267,500.0,0.00013801,7]
[331060702,1720046151098,500.0,0.00013801,7]
[331060703,1720046151852,500.0,0.00013801,7]
[331060704,1720046152610,500.0,0.00013801,7]
[331060705,1720046153361,500.0,0.00013801,7]
[331060706,1720046154142,500.0,0.00013801,7]
[331060707,1720046155243,500.0,0.00013801,7]
[331060708,1720046156000,500.0,0.00013801,7]
[331060709,1720046156751,500.0,0.00013801,7]
[331060710,1720046157751,500.0,0.00013801,7]
[331060711,1720046158331,500.0,0.00013801,7]
[331060712,1720046159075,500.0,0.00013801,7]
[331060713,1720046159839,225.86,0.00013801,7]
[331060714,1720046170280,155.0,9.999e-05,2]
[331060719,1720046257358,2500.0,0.000152,6]
[331060720,1720046261791,175.97073239,9.999e-05,2]
[331060724,1720046299272,155.0,9.999e-05,2]
[331060725,1720046305036,293.10784911,9.999e-05,2]
[331060727,1720046329292,155.0,9.999e-05,2]
[331060731,1720046395791,500.64383763,0.00025,120]
[331060733,1720046487143,215.65292916,9.999e-05,2]
[331060734,1720046559301,155.0,9.999e-05,2]
[331060735,1720046653308,199.07071097,9.999e-05,2]
[331060736,1720046748166,-763.27631226,0.00013485,2]
[331060739,1720046812108,-194.55003684,0.00013472,2]
[331060740,1720046827120,-1126.4356539,0.00013472,2]
[331060741,1720046828155,-1733.6303043,0.00013472,2]
[331060742,1720046840167,-1107.17494046,0.00013472,2]
[331060743,1720046841095,-1014.08783808,0.00013472,2]
[331060744,1720046841166,-150.99909156,0.00013472,2]
[331060745,1720046844096,-509.99456926,0.00013472,2]
[331060746,1720046849111,-190.85974906,0.00013472,2]
[331060748,1720046945112,-6034.39198284,0.00013472,2]
[331060749,1720046945134,-246.18618044,0.0001439,2]
[331060750,1720046992068,500.0,0.000142,7]
[331060751,1720046992805,500.0,0.000142,7]
[331060753,1720047023237,332.49,0.0001,10]
[331060762,1720047038551,-752.44039107,0.0001439,2]
[331060763,1720047038560,-161.8060428,0.0001439,2]
[331060764,1720047038570,-181.82027593,0.0001439,2]
[331060765,1720047038579,-156.34122363,0.0001439,2]
[331060766,1720047038588,-155.0,0.0001442,2]
[331060767,1720047038598,-500.0,0.00014489,2]
[331060768,1720047038607,-500.0,0.00014489,2]
[331060769,1720047038616,-1566.07,0.00014489,2]
[331060770,1720047038626,-500.0,0.00014489,2]
[331060771,1720047038635,-248.57855381,0.00014489,2]
[331060772,1720047038645,-10081.65,0.00014489,2]
[331060773,1720047038654,-1165.46015883,0.00014489,2]
[331060774,1720047038667,-24.19984117,0.00014489,2]
[331060775,1720047038676,-2271.19,0.00014489,2]
[331060776,1720047038685,-500.0,0.00014489,2]
[331060777,1720047038694,-500.0,0.00014489,2]
[331060778,1720047038703,-500.0,0.00014489,2]
[331060779,1720047038712,-500.0,0.00014489,2]
[331060780,1720047038722,-636.57651893,0.00014489,2]
[331060781,1720047038731,-1076.54690784,0.00014489,2]
[331060782,1720047038741,-13770.52676398,0.0001449,2]
[331060783,1720047038751,-500.0,0.0001449,2]
[331060784,1720047038760,-500.0,0.0001449,2]
[331060785,1720047038770,-500.0,0.0001449,2]
[331060786,1720047038779,-500.0,0.0001449,2]
[331060787,1720047038788,-502.77204608,0.0001449,2]
[331060788,1720047038798,-500.0,0.0001449,2]
[331060789,1720047038807,-545.02753253,0.0001449,2]
[331060790,1720047038817,-503.10576083,0.0001449,2]
[331060791,1720047038826,-500.0,0.0001449,2]
[331060792,1720047038836,-501.3110064,0.0001449,2]
[331060793,1720047038845,-507.65808669,0.0001449,2]
[331060794,1720047038855,-500.0,0.0001449,2]
[331060795,1720047038865,-500.0,0.0001449,2]
[331060796,1720047038875,-500.0,0.0001449,2]
[331060797,1720047038884,-501.08864485,0.0001449,2]
[331060798,1720047038894,-500.0,0.0001449,2]
[331060799,1720047038903,-500.0,0.0001449,2]
[331060800,1720047038913,-500.0,0.0001449,2]
[331060801,1720047038923,-500.0,0.0001449,2]
[331060802,1720047038933,-515.61278572,0.0001449,2]
[331060803,1720047038942,-500.0,0.0001449,2]
[331060804,1720047038951,-500.0,0.0001449,2]
[331060805,1720047038961,-500.0,0.0001449,2]
[331060806,1720047038970,-500.0,0.0001449,2]
[331060807,1720047038980,-503.93431625,0.0001449,2]
[331060808,1720047038989,-500.0,0.0001449,2]
[331060809,1720047038999,-502.47140459,0.0001449,2]
[331060810,1720047039008,-500.0,0.0001449,2]
[331060811,1720047039017,-241.8429873,0.0001449,2]